bitfinex/quotes_BTCUSD_20240918
["timestamp","ask_amount","ask_price","bid_price","bid_amount"]
[1726682817344,0.41618304,60542.0,60529.0,0.330417]
[1726682817345,0.99133409,60541.0,60529.0,0.330417]
[1726682817555,0.99133409,60534.0,60530.0,0.990836]
[1726682817773,0.99133409,60541.0,60530.0,0.00413998]
[1726682817989,0.99133409,60540.0,60531.0,0.990836]
[1726682818195,0.02591821,60534.0,60533.0,1.48693109]
[1726682818405,0.02591821,60534.0,60533.0,1.156393]
[1726682818613,0.02591821,60534.0,60533.0,1.15993693]
[1726682819049,0.02591821,60534.0,60533.0,1.60632862]
[1726682819255,0.02591821,60534.0,60533.0,2.15077293]
[1726682819469,0.02591821,60534.0,60533.0,1.82037493]
[1726682819723,0.02591821,60534.0,60533.0,1.48997693]
[1726682820136,0.02591821,60534.0,60533.0,2.15077293]
[1726682820365,0.99133409,60546.0,60534.0,0.33039]
[1726682820571,0.99133409,60546.0,60545.0,0.82583]
[1726682820996,0.99133409,60553.0,60537.0,0.990836]
[1726682821205,0.24774756,60565.0,60545.0,0.0038556]
[1726682821429,0.57797056,60565.0,60546.0,0.990836]
[1726682821646,0.02591042,60575.0,60553.0,0.99083478]
[1726682821865,0.74774756,60591.0,60577.0,0.165079]
[1726682822074,0.0032963,60590.0,60577.0,0.825395]
[1726682822283,0.34857525,60587.0,60577.0,0.0038556]
[1726682822492,0.165051,60588.0,60579.0,0.49522]
[1726682822710,0.34857525,60594.0,60564.0,1.32105978]
[1726682822711,0.330108,60587.0,60578.0,0.990836]
[1726682822968,0.330108,60587.0,60564.0,0.99083478]
[1726682822969,0.496855,60580.0,60579.0,0.0038556]
[1726682823172,0.001644,60580.0,60579.0,0.1689286]
[1726682823369,0.001644,60580.0,60579.0,0.0038556]
[1726682823608,0.496855,60580.0,60579.0,0.0038556]
[1726682823811,0.001644,60580.0,60565.0,0.99083478]
[1726682824018,0.001644,60580.0,60545.0,0.03]
[1726682824019,0.34857525,60568.0,60566.0,0.99083478]
[1726682824238,0.165106,60567.0,60566.0,0.99083478]
[1726682824443,0.1,60566.0,60551.0,0.330295]
[1726682824648,0.34857525,60567.0,60558.0,0.99083478]
[1726682824882,0.1,60566.0,60558.0,0.99083478]
[1726682825084,0.1,60566.0,60560.0,0.330246]
[1726682825289,0.99083478,60577.0,60558.0,0.99083478]
[1726682825501,0.99083478,60577.0,60576.0,0.165081]
[1726682825907,0.165053,60587.0,60579.0,0.165073]
[1726682826119,0.99083478,60596.0,60579.0,0.165073]
[1726682826322,0.99083478,60589.0,60579.0,0.165073]
[1726682826528,0.99083478,60589.0,60579.0,0.49522]
[1726682826943,0.5,60576.0,60559.0,0.99083478]
[1726682827149,0.825612,60561.0,60560.0,0.990836]
[1726682827356,0.5,60574.0,60560.0,0.990836]
[1726682827587,0.330223,60566.0,60560.0,0.990836]
[1726682827800,0.1,60579.0,60559.0,0.03]
[1726682828025,0.330245,60561.0,60560.0,0.990836]
[1726682828245,0.330245,60561.0,60532.0,0.99083478]
[1726682828246,0.495457,60550.0,60549.0,0.990836]
[1726682828462,0.34857525,60558.0,60546.0,1.020836]
[1726682828684,0.99083478,60568.0,60552.0,0.20963045]
[1726682828887,0.02591337,60556.0,60554.0,0.16514]
[1726682829093,0.02591337,60556.0,60555.0,2.19329423]
[1726682829306,0.330168,60576.0,60568.0,0.03]
[1726682829508,0.99083478,60572.0,60569.0,0.990836]
[1726682829723,0.330168,60576.0,60569.0,0.990836]
[1726682829984,0.330132,60582.0,60576.0,0.03]
[1726682830188,0.330132,60582.0,60570.0,0.00363212]
[1726682830189,0.34857525,60580.0,60570.0,0.9944669]
[1726682830402,0.02590562,60579.0,60574.0,0.04448445]
[1726682830627,0.5,60597.0,60574.0,0.04448445]
[1726682830628,0.34857525,60598.0,60583.0,0.03]
[1726682830841,0.330056,60596.0,60585.0,0.04448445]
[1726682831040,0.02590344,60599.0,60586.0,1.03532045]
[1726682831251,0.02590344,60599.0,60593.0,0.002]
[1726682831252,0.52096244,60599.0,60593.0,0.002]
[1726682831451,0.330031,60601.0,60594.0,0.990836]
[1726682831654,0.49509,60595.0,60594.0,0.99446397]
[1726682831864,0.330054,60596.0,60595.0,0.990836]
[1726682832083,0.165035,60593.0,60592.0,0.990836]
[1726682832293,0.165038,60592.0,60591.0,0.990836]
[1726682832526,0.165038,60592.0,60574.0,0.002]
[1726682832527,0.330019,60603.0,60586.0,0.99083478]
[1726682832742,0.16502,60599.0,60593.0,0.165035]
[1726682832960,0.99083478,60607.0,60595.0,0.04448445]
[1726682833177,0.5,60618.0,60600.0,0.04448445]
[1726682833178,0.329946,60616.0,60600.0,0.04448445]
[1726682833392,0.0258953,60617.0,60616.0,0.04648445]
[1726682833609,0.99083478,60623.0,60616.0,0.03]
[1726682833845,0.99083478,60623.0,60612.0,0.01448445]
[1726682833846,0.34857525,60623.0,60615.0,0.990836]
[1726682834057,0.02753455,60627.0,60615.0,0.04448445]
[1726682834266,0.329901,60625.0,60616.0,0.990836]
[1726682834480,0.02753455,60627.0,60616.0,0.990836]
[1726682834481,0.02753455,60627.0,60617.0,0.99083478]
[1726682834689,0.824824,60619.0,60618.0,0.990836]
[1726682834901,0.001646,60627.0,60618.0,0.990836]
[1726682835167,0.329898,60625.0,60618.0,0.990836]
[1726682835388,0.329912,60623.0,60619.0,0.99083478]
[1726682835602,0.329918,60621.0,60620.0,0.990836]
[1726682835845,0.001646,60627.0,60593.0,1.02083478]
[1726682835846,0.264964,60619.0,60618.0,0.990836]
[1726682836072,0.264964,60619.0,60614.0,0.990836]
[1726682836073,0.329951,60615.0,60614.0,0.990836]
[1726682836288,0.1,60614.0,60612.0,0.990836]
[1726682836520,0.1,60612.0,60609.0,0.990836]
[1726682836733,0.1,60612.0,60608.0,0.990836]
[1726682836955,0.824957,60609.0,60608.0,0.990836]
[1726682837170,0.594974,60609.0,60608.0,0.990836]
[1726682837384,1.25494,60609.0,60608.0,0.990836]
[1726682837590,0.165011,60602.0,60601.0,0.24747983]
[1726682837823,0.165011,60602.0,60594.0,0.24747983]
[1726682837824,0.26503,60595.0,60594.0,0.24747983]
[1726682838033,0.92515,60595.0,60594.0,0.24747983]
[1726682838256,0.98890059,60603.0,60590.0,0.990836]
[1726682838257,0.1,60594.0,60590.0,0.990836]
[1726682838507,0.330087,60590.0,60588.0,0.990836]
[1726682838726,0.1,60601.0,60594.0,0.04448445]
[1726682838944,0.41250983,60595.0,60594.0,0.04448445]
[1726682839172,0.165027,60596.0,60595.0,0.990836]
[1726682839385,0.495081,60596.0,60595.0,0.990836]
[1726682839826,0.165084,60575.0,60572.0,0.002]
[1726682840046,0.165098,60570.0,60569.0,0.03]
[1726682840300,0.59531,60568.0,60553.0,0.03]
[1726682840510,0.16512,60562.0,60561.0,0.24747983]
[1726682840725,0.1,60567.0,60548.0,0.002]
[1726682840726,0.1,60560.0,60548.0,0.002]
[1726682840940,0.165141,60554.0,60553.0,0.03]
[1726682841150,0.1,60560.0,60556.0,0.04448445]
[1726682841371,0.495394,60558.0,60557.0,0.990836]
[1726682841579,0.1,60560.0,60557.0,0.990836]
[1726682842010,0.16513,60558.0,60557.0,0.990836]
[1726682842232,0.1,60557.0,60549.0,0.03]
[1726682842483,0.92583,60545.0,60544.0,0.00019883]
[1726682842698,0.1,60545.0,60544.0,0.00019883]
[1726682842976,0.64032534,60558.0,60547.0,0.04448445]
[1726682842977,0.165146,60553.0,60547.0,0.04448445]
[1726682843203,0.01551555,60578.0,60558.0,0.002]
[1726682843204,0.34857525,60578.0,60558.0,0.002]
[1726682843421,0.330196,60571.0,60563.0,0.04448445]
[1726682843639,0.33016,60577.0,60565.0,0.04448445]
[1726682843855,0.33016,60577.0,60561.0,0.002]
[1726682843856,0.64032534,60581.0,60569.0,0.04448445]
[1726682844074,0.64032534,60581.0,60557.0,0.34857525]
[1726682844075,0.165055,60586.0,60579.0,0.04448445]
[1726682844308,0.5,60604.0,60580.0,0.990836]
[1726682844309,0.165068,60581.0,60580.0,0.990836]
[1726682844520,0.5,60594.0,60577.0,0.99048311]
[1726682844748,0.5,60594.0,60578.0,0.990836]
[1726682844982,0.330085,60591.0,60578.0,0.990836]
[1726682845188,0.330089,60590.0,60580.0,0.165069]
[1726682845410,0.64032534,60597.0,60587.0,0.03]
[1726682845411,0.165032,60594.0,60587.0,0.03]
[1726682845629,1.63080845,60597.0,60588.0,0.990836]
[1726682845841,0.64032534,60597.0,60587.0,0.04448445]
[1726682846067,0.64032534,60597.0,60585.0,0.99048311]
[1726682846068,0.64032534,60597.0,60589.0,0.04448445]
[1726682846304,0.99048311,60610.0,60601.0,0.04448445]
[1726682846531,0.99048311,60610.0,60595.0,0.04448445]
[1726682846763,0.02589513,60596.0,60595.0,0.04448445]
[1726682846997,0.64032534,60618.0,60602.0,0.04448445]
[1726682847217,0.329975,60611.0,60603.0,0.990836]
[1726682847429,0.164989,60610.0,60609.0,0.03]
[1726682847647,0.97026334,60618.0,60610.0,0.990836]
[1726682847648,0.166628,60612.0,60610.0,0.990836]
[1726682847875,0.166629,60612.0,60610.0,0.990836]
[1726682848108,0.001644,60612.0,60611.0,0.04448445]
[1726682848311,0.001644,60612.0,60611.0,1.03732045]
[1726682848947,0.496594,60612.0,60611.0,0.990836]
[1726682849151,0.164989,60610.0,60609.0,0.03]
[1726682849408,0.494974,60609.0,60608.0,0.03]
[1726682849617,0.329978,60610.0,60609.0,0.990836]
[1726682849826,0.165008,60603.0,60602.0,0.990836]
[1726682850047,0.165008,60603.0,60602.0,1.020836]
[1726682850288,0.1,60609.0,60602.0,1.020836]
[1726682850507,0.1,60609.0,60603.0,0.990836]
[1726682850783,0.001644,60612.0,60600.0,0.990836]
[1726682850784,0.1,60602.0,60600.0,0.990836]
[1726682850991,0.1,60600.0,60593.0,0.990836]
[1726682851198,0.24750025,60601.0,60580.0,0.03]
[1726682851199,0.595106,60593.0,60592.0,0.24750025]
[1726682851629,0.265035,60593.0,60592.0,0.24750025]
[1726682851835,0.165043,60590.0,60589.0,0.04648445]
[1726682852044,0.1,60592.0,60590.0,0.990836]
[1726682852246,0.64032534,60603.0,60590.0,1.03532045]
[1726682852458,0.64032534,60603.0,60601.0,0.03]
[1726682852664,0.495033,60602.0,60601.0,0.03]
[1726682852875,0.165018,60600.0,60597.0,0.03]
[1726682853090,0.165019,60599.0,60598.0,0.990836]
[1726682853301,0.165019,60599.0,60596.0,0.03]
[1726682853302,0.165021,60598.0,60597.0,0.990836]
[1726682853519,0.001644,60612.0,60603.0,0.03]
[1726682853731,0.164988,60611.0,60608.0,0.04448445]
[1726682853949,0.164988,60611.0,60604.0,0.992836]
[1726682853950,0.001644,60612.0,60611.0,0.04448445]
[1726682854175,0.164986,60611.0,60610.0,1.020836]
[1726682854386,0.001644,60612.0,60611.0,1.20030645]
[1726682854596,0.001644,60612.0,60611.0,1.03532045]
[1726682854800,0.166627,60612.0,60611.0,0.990836]
[1726682855035,0.496594,60612.0,60611.0,1.020836]
[1726682855267,0.496594,60612.0,60611.0,0.990836]
[1726682855496,0.496594,60612.0,60598.0,0.33004]
[1726682855497,0.494967,60610.0,60609.0,0.990836]
[1726682855787,0.1,60610.0,60609.0,0.24750025]
[1726682855991,0.001644,60612.0,60611.0,0.03]
[1726682856201,0.001644,60612.0,60611.0,0.04448445]
[1726682856418,0.001644,60612.0,60611.0,0.04648445]
[1726682856635,0.001644,60612.0,60611.0,0.04448445]
[1726682856847,0.001644,60612.0,60611.0,1.20230645]
[1726682857058,0.001644,60612.0,60611.0,1.03732045]
[1726682857268,0.001644,60612.0,60611.0,1.20230645]
[1726682857468,0.001644,60612.0,60611.0,1.03532045]
[1726682857689,0.02753392,60612.0,60611.0,1.03532045]
[1726682858115,0.02753392,60612.0,60611.0,1.03732045]
[1726682858569,0.02753392,60612.0,60611.0,1.03532045]
[1726682858570,0.19251692,60612.0,60611.0,1.03532045]
[1726682858788,0.001644,60612.0,60611.0,1.03532045]
[1726682858998,0.001644,60612.0,60611.0,1.03732045]
[1726682859222,0.001644,60612.0,60611.0,2.32586135]
[1726682860100,0.001644,60612.0,60611.0,2.65583435]
[1726682860305,0.001646,60627.0,60625.0,0.87122445]
[1726682860517,0.001646,60627.0,60625.0,2.19195645]
[1726682861167,0.001646,60627.0,60625.0,1.86006045]
[1726682861375,0.001646,60627.0,60625.0,2.19195645]
[1726682861586,0.001646,60627.0,60625.0,2.24933173]
[1726682861797,0.03285823,60626.0,60625.0,2.19195645]
[1726682862003,0.03285823,60626.0,60625.0,2.52185245]
[1726682862240,0.03285823,60626.0,60625.0,1.020836]
[1726682862450,0.03285823,60626.0,60625.0,1.185784]
[1726682862656,0.0069805,60626.0,60625.0,1.03532045]
[1726682862865,0.0069805,60626.0,60625.0,1.99878429]
[1726682863117,0.0069805,60626.0,60625.0,1.03532045]
[1726682863318,0.5018165,60626.0,60625.0,1.020836]
[1726682863540,0.8317075,60626.0,60625.0,1.020836]
[1726682863746,1.1615985,60626.0,60625.0,0.990836]
[1726682863951,0.0069805,60626.0,60617.0,0.03]
[1726682864156,0.164964,60619.0,60618.0,0.990836]
[1726682864379,0.494902,60618.0,60617.0,0.03]
[1726682864585,0.924822,60619.0,60618.0,0.990836]
[1726682864786,0.1,60618.0,60616.0,0.03]
[1726682865001,0.16497,60617.0,60616.0,0.03]
[1726682865211,0.1,60618.0,60614.0,0.03]
[1726682865212,0.824877,60615.0,60614.0,0.03]
[1726682865419,0.1,60618.0,60615.0,1.020836]
[1726682865420,0.494917,60616.0,60615.0,1.020836]
[1726682865641,0.1,60618.0,60616.0,1.020836]
[1726682865845,0.49491,60617.0,60616.0,0.03]
[1726682866105,0.32991,60623.0,60617.0,0.990836]
[1726682866314,0.0069805,60626.0,60620.0,0.04448445]
[1726682866524,0.0069805,60626.0,60621.0,0.990836]
[1726682866525,0.329907,60623.0,60621.0,0.990836]
[1726682866734,0.494869,60622.0,60621.0,0.990836]
[1726682866944,0.0069805,60626.0,60620.0,0.03]
[1726682867146,0.3368725,60626.0,60621.0,0.990836]
[1726682867367,0.0086245,60626.0,60621.0,0.990836]
[1726682867581,0.164956,60622.0,60621.0,0.990836]
[1726682867785,0.49486,60623.0,60622.0,0.03]
[1726682868198,0.329907,60623.0,60616.0,0.03]
[1726682868404,0.32993,60619.0,60617.0,1.020836]
[1726682868640,0.32993,60619.0,60612.0,0.01448445]
[1726682868641,0.164981,60613.0,60612.0,0.9897397]
[1726682868846,0.02588284,60623.0,60618.0,0.03]
[1726682869053,0.02588284,60623.0,60622.0,0.53935345]
[1726682869266,0.02588284,60623.0,60622.0,0.04448445]
[1726682869489,0.02588284,60623.0,60622.0,1.20027645]
[1726682869697,0.02588284,60623.0,60622.0,0.990836]
[1726682869698,0.85064984,60623.0,60622.0,0.990836]
[1726682869911,0.52074284,60623.0,60622.0,0.990836]
[1726682870138,0.52074284,60623.0,60621.0,0.990836]
[1726682870139,0.494869,60622.0,60621.0,0.990836]
[1726682870341,0.329913,60622.0,60621.0,0.990836]
[1726682870546,0.02588284,60623.0,60621.0,0.990836]
[1726682870787,0.41239297,60622.0,60621.0,0.990836]
[1726682870990,0.494869,60622.0,60621.0,0.990836]
[1726682871225,0.02588284,60623.0,60622.0,0.04448445]
[1726682871434,0.0086245,60626.0,60622.0,0.990836]
[1726682871652,0.0086245,60626.0,60613.0,0.990836]
[1726682871872,0.84350925,60614.0,60594.0,0.04448445]
[1726682872088,0.84350925,60614.0,60593.0,0.24743697]
[1726682872089,0.165002,60605.0,60604.0,0.98993565]
[1726682872513,0.165005,60604.0,60600.0,0.03]
[1726682872723,0.165006,60604.0,60601.0,0.990836]
[1726682872932,0.1,60613.0,60601.0,0.990836]
[1726682872933,1.25494665,60602.0,60601.0,0.990836]
[1726682873136,0.16503,60595.0,60594.0,0.98993565]
[1726682873351,0.49509,60595.0,60594.0,0.98993565]
[1726682873552,0.49509,60595.0,60592.0,0.03]
[1726682873553,0.165035,60593.0,60592.0,0.03]
[1726682873792,0.495097,60594.0,60593.0,0.990836]
[1726682874032,1.255227,60594.0,60593.0,0.990836]
[1726682874263,0.1,60592.0,60590.0,0.000822]
[1726682874483,0.430065,60594.0,60590.0,0.000822]
[1726682874484,3.0937979,60591.0,60590.0,0.000822]
[1726682874728,2.46394425,60591.0,60590.0,0.000822]
[1726682874944,2.4794598,60591.0,60590.0,0.000822]
[1726682875608,2.43394425,60591.0,60590.0,0.000822]
[1726682875820,1.755287,60591.0,60590.0,0.000822]
[1726682876729,2.43394425,60591.0,60590.0,0.000822]
[1726682877166,2.4794598,60591.0,60590.0,0.000822]
[1726682877375,1.42534,60581.0,60580.0,0.000822]
[1726682878037,0.92534,60581.0,60580.0,0.000822]
[1726682878246,0.595204,60581.0,60580.0,0.000822]
[1726682878464,0.92534,60581.0,60580.0,0.000822]
[1726682878702,2.10405125,60581.0,60580.0,0.000822]
[1726682879146,1.255801,60564.0,60563.0,0.24756356]
[1726682879382,0.1,60564.0,60563.0,0.24756356]
[1726682879603,0.265114,60564.0,60563.0,0.24756356]
[1726682879817,0.265114,60564.0,60558.0,0.973444]
[1726682879818,0.265128,60559.0,60558.0,0.973444]
[1726682880026,0.165147,60552.0,60551.0,0.973444]
[1726682880243,0.595441,60552.0,60551.0,0.973444]
[1726682880882,1.256029,60552.0,60551.0,0.973444]
[1726682881103,1.60460425,60552.0,60551.0,0.97709086]
[1726682881355,1.256162,60545.0,60544.0,0.00019883]
[1726682881756,1.256162,60545.0,60503.0,0.03]
[1726682881757,0.826035,60530.0,60503.0,0.03]
[1726682881760,1.42609,60526.0,60507.0,0.0031613]
[1726682881983,1.42609,60526.0,60519.0,0.9920742]
[1726682881984,0.926172,60520.0,60519.0,0.9920742]
[1726682882232,2.2816698,60520.0,60519.0,0.000722]
[1726682882459,2.3116698,60520.0,60519.0,0.000722]
[1726682882674,1.80225155,60515.0,60514.0,0.0069405]
[1726682882902,1.47185055,60508.0,60507.0,0.0031613]
[1726682883123,2.43597825,60508.0,60507.0,0.0031613]
[1726682883343,1.426555,60492.0,60491.0,0.0002]
[1726682883565,3.11242646,60492.0,60491.0,0.0002]
[1726682883779,3.44304846,60492.0,60491.0,0.0002]
[1726682883993,3.79162371,60492.0,60491.0,0.0002]
[1726682884216,0.5,60472.0,60470.0,0.9912522]
[1726682884442,0.5,60472.0,60444.0,0.9912522]
[1726682884443,0.59626,60452.0,60451.0,0.9914522]
[1726682884665,0.59626,60452.0,60444.0,0.9912522]
[1726682884666,1.427115,60451.0,60446.0,0.000822]
[1726682884897,1.75830916,60452.0,60431.0,0.0002]
[1726682884898,0.92732,60436.0,60431.0,0.0002]
[1726682885109,0.59659,60412.0,60379.0,0.03]
[1726682885324,0.94516525,60412.0,60380.0,0.00331091]
[1726682885569,1.30219158,60412.0,60411.0,0.0035245]
[1726682885775,1.63325158,60412.0,60411.0,0.0034245]
[1726682886005,1.60728525,60412.0,60411.0,0.0034245]
[1726682886246,0.331052,60414.0,60405.0,0.04448445]
[1726682886471,0.596597,60411.0,60409.0,0.03]
[1726682886694,0.97136934,60415.0,60397.0,0.0077541]
[1726682886695,1.096687,60400.0,60397.0,0.0077541]
[1726682886946,2.06813734,60400.0,60397.0,0.0077541]
[1726682887373,2.39926234,60400.0,60397.0,0.0077541]
[1726682887813,2.73038734,60400.0,60397.0,0.0077541]
[1726682888252,1.56813734,60400.0,60397.0,0.0077541]
[1726682888461,1.56813734,60400.0,60397.0,0.0377541]
[1726682888462,0.927812,60400.0,60397.0,0.0377541]
[1726682888679,0.927812,60400.0,60397.0,0.0077541]
[1726682888680,1.27638725,60400.0,60397.0,0.0077541]
[1726682888892,1.30236091,60400.0,60397.0,0.0077541]
[1726682889102,1.27638725,60400.0,60397.0,0.0077541]
[1726682889311,0.265562,60400.0,60397.0,0.0077541]
[1726682889555,1.27638725,60400.0,60397.0,0.0077541]
[1726682889798,1.77638725,60400.0,60397.0,0.0077541]
[1726682890042,1.27638725,60400.0,60397.0,0.0077541]
[1726682890229,1.29242131,60400.0,60397.0,0.0077541]
[1726682890439,2.12354631,60400.0,60397.0,0.0077541]
[1726682890676,2.10766625,60392.0,60391.0,0.0002]
[1726682890885,0.61388367,60392.0,60391.0,0.0002]
[1726682891118,1.46238911,60392.0,60391.0,0.0002]
[1726682891364,0.30005111,60392.0,60391.0,0.0002]
[1726682891581,0.96238911,60392.0,60391.0,0.0002]
[1726682891792,0.86563611,60392.0,60391.0,0.0002]
[1726682892023,1.46238911,60392.0,60391.0,0.0002]
[1726682892270,2.14213336,60392.0,60391.0,0.0002]
[1726682892489,0.63122011,60392.0,60391.0,0.0002]
[1726682892708,0.01713067,60392.0,60391.0,0.04468445]
[1726682892919,0.24834643,60413.0,60412.0,0.70660445]
[1726682893137,0.24834643,60413.0,60412.0,0.54307445]
[1726682893358,0.24810324,60432.0,60431.0,0.20996145]
[1726682893569,0.99301579,60438.0,60437.0,0.04648445]
[1726682893782,0.99301579,60438.0,60437.0,0.21194545]
[1726682894074,1.48939079,60438.0,60437.0,0.0031354]
[1726682894337,0.827292,60438.0,60437.0,0.0031354]
[1726682894587,0.34857525,60439.0,60425.0,0.04448445]
[1726682894588,0.165479,60431.0,60425.0,0.04448445]
[1726682894805,0.16546,60438.0,60434.0,0.03]
[1726682895029,0.99301579,60449.0,60442.0,0.04448445]
[1726682895251,0.99301579,60449.0,60446.0,0.04448445]
[1726682895471,0.99301579,60449.0,60428.0,0.03]
[1726682895715,0.99301579,60449.0,60429.0,0.99301579]
[1726682895716,0.16548,60430.0,60429.0,0.99301579]
[1726682895932,0.496417,60433.0,60432.0,0.03]
[1726682896155,0.496417,60433.0,60429.0,1.00750024]
[1726682896156,0.827402,60430.0,60429.0,0.0035873]
[1726682896380,0.5,60430.0,60411.0,0.99301579]
[1726682896610,0.49659,60412.0,60411.0,1.02301579]
[1726682896822,0.92765,60412.0,60411.0,0.99301579]
[1726682897067,0.596647,60405.0,60400.0,0.04448445]
[1726682897283,0.596647,60405.0,60397.0,0.99301579]
[1726682897284,0.265568,60398.0,60397.0,1.02301579]
[1726682897495,0.165557,60402.0,60401.0,0.04833563]
[1726682897711,0.02597426,60398.0,60392.0,0.04448445]
[1726682897935,0.496746,60393.0,60392.0,0.04448445]
[1726682898155,0.496746,60393.0,60378.0,0.04648445]
[1726682898156,0.165584,60392.0,60378.0,0.04648445]
[1726682898377,0.94505267,60392.0,60382.0,0.04448445]
[1726682898609,0.96805267,60392.0,60377.0,0.04448445]
[1726682898840,1.29922167,60392.0,60379.0,0.99301579]
[1726682899275,1.29922167,60392.0,60372.0,1.03750024]
[1726682899276,1.63039067,60392.0,60372.0,1.03750024]
[1726682899492,1.64779692,60392.0,60372.0,0.99301579]
[1726682899709,1.64779692,60392.0,60379.0,0.99301579]
[1726682899927,1.64779692,60392.0,60382.0,0.04448445]
[1726682899928,0.94505267,60392.0,60382.0,0.04448445]
[1726682900370,0.94505267,60392.0,60382.0,0.03]
[1726682900371,1.29922167,60392.0,60382.0,0.03]
[1726682900608,0.95905267,60392.0,60384.0,0.24837932]
[1726682900885,0.95905267,60392.0,60388.0,0.04448445]
[1726682900886,0.13113067,60392.0,60388.0,0.04448445]
[1726682901127,0.01713067,60392.0,60390.0,0.03]
[1726682901390,0.03113067,60392.0,60380.0,0.04448445]
[1726682901612,1.17622167,60392.0,60377.0,0.04448445]
[1726682901828,1.17622167,60392.0,60380.0,0.03]
[1726682901829,1.21620404,60392.0,60380.0,0.03]
[1726682902070,1.90854204,60392.0,60367.0,0.030823]
[1726682902325,1.282476,60372.0,60368.0,0.24837932]
[1726682902581,1.98083209,60372.0,60368.0,0.24837932]
[1726682903083,1.98083209,60372.0,60367.0,0.000823]
[1726682903084,1.30397206,60372.0,60367.0,0.000823]
[1726682903398,2.13525106,60372.0,60367.0,0.000823]
[1726682903600,1.82672887,60372.0,60367.0,0.000823]
[1726682903810,1.259648,60363.0,60362.0,0.0069384]
[1726682904033,0.28677231,60363.0,60362.0,0.0069384]
[1726682904262,0.014,60372.0,60371.0,0.03]
[1726682904483,0.014,60372.0,60371.0,0.54141045]
[1726682904706,0.24837932,60383.0,60382.0,0.01448445]
[1726682904922,0.24837932,60383.0,60371.0,0.04848266]
[1726682904923,0.74520732,60383.0,60371.0,0.04848266]
[1726682905138,0.5,60388.0,60374.0,0.24837932]
[1726682905139,0.34857525,60385.0,60374.0,0.24837932]
[1726682905365,1.30973391,60394.0,60377.0,0.002]
[1726682905590,0.34857525,60383.0,60363.0,0.002]
[1726682905824,0.496975,60365.0,60364.0,0.99371475]
[1726682906060,0.82832,60363.0,60362.0,0.0069384]
[1726682906297,1.159648,60363.0,60362.0,0.0069384]
[1726682906510,1.51208431,60363.0,60362.0,0.0069384]
[1726682906728,1.63508431,60363.0,60362.0,0.0069384]
[1726682907447,1.31775631,60363.0,60362.0,0.0069384]
[1726682907660,1.30375631,60363.0,60362.0,0.0069384]
[1726682907914,0.28677231,60363.0,60362.0,0.0019384]
[1726682908142,0.20077231,60363.0,60362.0,0.0319384]
[1726682908342,0.20077231,60363.0,60362.0,0.0019384]
[1726682908343,0.84942831,60363.0,60362.0,0.0019384]
[1726682908597,1.18075631,60363.0,60362.0,0.0019384]
[1726682908809,1.18075631,60363.0,60351.0,0.0002]
[1726682908810,0.828472,60352.0,60351.0,0.0002]
[1726682909025,0.828472,60352.0,60316.0,0.0001]
[1726682909026,2.66082398,60352.0,60345.0,0.24854395]
[1726682909241,2.66082398,60352.0,60338.0,0.24926595]
[1726682909242,0.59719,60339.0,60338.0,0.24926595]
[1726682909503,1.28451303,60339.0,60338.0,0.24926595]
[1726682909732,1.28451303,60339.0,60338.0,0.000722]
[1726682910002,1.28431413,60339.0,60338.0,0.000722]
[1726682910235,1.63288938,60339.0,60338.0,0.000722]
[1726682910511,1.28431413,60339.0,60338.0,0.000722]
[1726682910730,1.30166653,60339.0,60338.0,0.000722]
[1726682910927,2.63740866,60339.0,60338.0,0.000722]
[1726682911152,2.31994866,60339.0,60338.0,0.000722]
[1726682911368,1.30508009,60339.0,60338.0,0.000722]
[1726682911579,1.96800009,60339.0,60338.0,0.000722]
[1726682912040,2.31346009,60339.0,60338.0,0.000722]
[1726682912498,1.31908009,60339.0,60338.0,0.000722]
[1726682912713,0.72208899,60339.0,60338.0,0.000722]
[1726682912931,0.014,60339.0,60338.0,0.90717296]
[1726682913151,0.00027222,60351.0,60350.0,0.54158445]
[1726682913431,0.00027222,60351.0,60350.0,0.04448445]
[1726682913432,0.02302756,60351.0,60350.0,0.04448445]
[1726682913658,0.18872456,60351.0,60350.0,0.003933]
[1726682913886,0.010067,60339.0,60338.0,0.000722]
[1726682914090,0.010067,60339.0,60338.0,0.04520645]
[1726682914091,0.02440303,60339.0,60338.0,0.04520645]
[1726682914299,0.02440303,60339.0,60338.0,0.04885852]
[1726682914518,0.00027222,60351.0,60345.0,0.04448445]
[1726682914519,0.01427222,60351.0,60345.0,0.04448445]
[1726682914746,0.00027222,60351.0,60350.0,0.21018445]
[1726682914977,0.00027222,60351.0,60350.0,0.54358445]
[1726682915195,0.00027222,60351.0,60350.0,0.04813652]
[1726682915414,1.16015122,60351.0,60350.0,0.00365207]
[1726682915628,0.82875722,60351.0,60350.0,0.00365207]
[1726682915842,0.828512,60349.0,60348.0,0.03]
[1726682916068,0.00027222,60351.0,60345.0,0.03]
[1726682916290,0.00027222,60351.0,60339.0,0.002]
[1726682916291,0.49714,60345.0,60344.0,0.04448445]
[1726682916507,0.49714,60345.0,60339.0,0.002]
[1726682916508,0.165717,60344.0,60343.0,0.04448445]
[1726682916722,0.1,60340.0,60339.0,0.04448445]
[1726682916933,0.0242657,60340.0,60339.0,0.04448445]
[1726682917662,0.0242657,60340.0,60338.0,0.000722]
[1726682917909,0.62152437,60339.0,60338.0,0.000722]
[1726682918188,0.62152437,60339.0,60330.0,0.000823]
[1726682918189,0.165749,60332.0,60330.0,0.000823]
[1726682918412,0.165749,60332.0,60310.0,0.99430759]
[1726682918413,1.30059525,60312.0,60310.0,0.99430759]
[1726682918628,0.123,60303.0,60301.0,0.000825]
[1726682918852,0.454652,60304.0,60282.0,0.99430759]
[1726682918853,0.597577,60292.0,60282.0,0.99430759]
[1726682919079,0.597577,60292.0,60269.0,0.002]
[1726682919080,0.265914,60272.0,60269.0,0.99430759]
[1726682919292,3.2384218,60272.0,60271.0,0.0001]
[1726682919504,0.620833,60261.0,60260.0,0.0067446]
[1726682919717,0.96942525,60259.0,60258.0,0.02711733]
[1726682919939,0.96942525,60259.0,60256.0,0.0031613]
[1726682919940,0.997866,60257.0,60256.0,0.0031613]